Cogmind - Beta 11 @@@ ROGUE MODE // 2022.03.27 @ 17:40:16 // Winter2019/RPGLIKE Player: POG Result: Destroyed by G-47 Trooper with Particle Gun Performance ------------- Evolutions (2) 1000 Regions Visited (5) 1000 Robots Destroyed (56) 280 Value Destroyed (999) 999 Prototype IDs (26) 520 Alien Tech Used (0) 0 Bonus (143) 143 TOTAL SCORE: 3942 Bonus ------- High Alert Combat Kills 51 Aligned with FarCom 300 Friendly Fire -208 Cogmind --------- Core Integrity 0/600 Matter 280/300 Energy 1601/1625 System Corruption 0% Temperature Cool (52) Movement Walking (130) Location -8/Materials Parts ------- > --- POWER (2) -------- Light Ion Engine > --- PROPULSION (2) --- Improved Titanium Leg Improved Titanium Leg > --- UTILITY (5) ------ Superbattery Improved Signal Interpreter Improved Terrain Scanner Seismic Detector Hacking Suite > --- WEAPON (3) ------- Heavy EM Shotgun Pulse Rifle Katana > --- INVENTORY (3) ---- Improved Titanium Leg High-capacity Matter Pod (200) Remote Datajack Peak State ------------ > --- POWER ------------ Light Ion Engine Light Nuclear Core > --- PROPULSION ------- Improved Titanium Leg Improved Titanium Leg > --- UTILITY ---------- Superbattery Improved Signal Interpreter Improved Terrain Scanner Seismic Detector Hacking Suite > --- WEAPON ----------- Heavy EM Shotgun Pulse Rifle Katana > --- INVENTORY -------- Improved Titanium Leg High-capacity Matter Pod Remote Datajack [Rating: 42] Favorites ----------- Power Light Nuclear Core Engine Ion Engine Power Core Light Nuclear Core Propulsion Wheel Leg Improved Titanium Leg Wheel Wheel Utility Improved Terrain Scanner Device Improved Terrain Scanner Storage Superbattery Processor Improved Signal Interpreter Hackware Hacking Suite Weapon Grenade Launcher Energy Gun Heavy EM Shotgun Ballistic Gun Light Assault Rifle Launcher Grenade Launcher Slashing Weapon Katana Build | -11 -10 -10 -10 -9 -8 ------- Run | Scr Mat Min Exi Min Mat Slots Evolved 8 | 4 . . 1 2 1 Power 1 | . . . . 1 . Propulsion 1 | 1 . . . . . Utility 4 | 2 . . 1 . 1 Weapon 2 | 1 . . . 1 . Parts Attached 25 | 8 3 1 1 3 9 Power 3 | 1 1 . . . 1 Engine 2 | 1 . . . . 1 Core 1 | . 1 . . . . Reactor . | . . . . . . Propulsion 4 | 2 . . . . 2 Treads . | . . . . . . Leg 2 | . . . . . 2 Wheel 2 | 2 . . . . . Hover . | . . . . . . Flight . | . . . . . . Utility 7 | 3 1 . 1 . 2 Device 3 | 2 . . . . 1 Storage 2 | 1 . . 1 . . Processor 1 | . . . . . 1 Hackware 1 | . 1 . . . . Protection . | . . . . . . Artifact . | . . . . . . Weapon 11 | 2 1 1 . 3 4 Energy Gun 2 | . . . . . 2 Energy Cannon . | . . . . . . Ballistic Gun 3 | 2 . . . 1 . Ballistic Cannon . | . . . . . . Launcher 5 | . 1 1 . 2 1 Special Weapon . | . . . . . . Impact Weapon . | . . . . . . Slashing Weapon 1 | . . . . . 1 Piercing Weapon . | . . . . . . Special Melee Weapon . | . . . . . . Unidentified Prototypes 1 | . . . . . 1 Parts Lost 1 | . . . . . 1 Power 1 | . . . . . 1 Propulsion . | . . . . . . Utility . | . . . . . . Weapon . | . . . . . . Highest Loss Streak 1 | . . . . . 1 To Critical Strikes . | . . . . . . Average Slot Usage (%) 97 | . 100 100 100 93 95 Engine 2 | . 4 . . . 4 Core 9 | . 7 12 11 9 7 Leg 2 | . . . . . 7 Wheel 19 | . 25 25 22 19 8 Device 23 | . 25 25 22 19 23 Storage 5 | . 1 . 7 9 8 Hackware 10 | . 10 12 11 9 8 Energy Gun 1 | . . . . . 6 Ballistic Gun 4 | . 12 9 . . . Launcher 16 | . 11 14 22 24 10 Slashing Weapon 1 | . . . . . 6 Naked Turns . | . . . . . . Heaviest Build 26 | 11 13 14 18 21 26 Greatest Support 45 | 20 20 20 25 25 45 Greatest Overweight (x) 1 | . . . . . 1 Average Overweight (x) . | . . . . . . Largest Inventory Capacity 3 | 1 1 3 3 3 3 Average Capacity 2 | 1 1 2 3 3 3 Most Carried 3 | 1 1 3 3 3 3 Average Carried 2 | . 1 2 3 2 2 Final Capacity 3 | 1 1 3 3 3 3 Final Carried 3 | 1 1 3 3 3 3 Class Distribution -------------------- 44% | Scavenger-Mutant 21% | Mutant 20% | Scavenger-Assassin 13% | Scavenger-Skirmisher Dominant Class ---------------- Scavenger-Mutant | -10/Materials Scavenger-Mutant | -10/Mines Scavenger-Mutant | -10/Exiles Scavenger-Skirmisher | -9/Mines Scavenger-Assassin | -8/Materials Resources | -11 -10 -10 -10 -9 -8 ----------- Run | Scr Mat Min Exi Min Mat Matter Collected 1177 | 429 80 68 . 462 138 Remotely . | . . . . . . Salvage Created 1154 | 260 112 100 . 119 563 Parts 106 | 19 23 13 . 11 40 Haulers Intercepted 1 | . 1 . . . . Recyclers Shooed 1 | . . . . . 1 Parts Field Recycled . | . . . . . . Retrieved Matter . | . . . . . . Parts Self-Destructed . | . . . . . . Prevented . | . . . . . . Kills | -11 -10 -10 -10 -9 -8 ------- Run | Scr Mat Min Exi Min Mat Combat Hostiles Destroyed 28 | . 7 8 . 7 6 Melee 1 | . . . . . 1 Guns 6 | . 1 1 . . 4 AOE 21 | . 6 7 . 7 1 Classes Destroyed 13 | 3 5 . . . 5 Worker 7 | 2 . 2 . . 3 Builder 1 | . . . . . 1 Tunneler 9 | 8 . . . . 1 Hauler 1 | . 1 . . . . Recycler 4 | 1 . . . 1 2 Operator 2 | . 2 . . . . Watcher 3 | . 1 . . . 2 Swarmer 16 | . 3 6 . 7 . Grunt 6 | . 4 2 . . . Sentry 2 | . . . . . 2 Specialist 2 | . . . . . 2 Hunter 1 | . . . . . 1 Heavy 1 | . . . . . 1 Thug 1 | . . . . 1 . Best Kill Streak 8 | 8 8 7 . 4 5 Combat Bots Only 6 | . 6 3 . 4 3 Max Kills in Single Turn 3 | 1 3 3 . 3 2 Gunslinging . | . . . . . . Exploded 3 | . 2 3 . 3 1 Melee 1 | . . . . . 1 Uniques/NPCs Destroyed . | . . . . . . Combat | -11 -10 -10 -10 -9 -8 -------- Run | Scr Mat Min Exi Min Mat Damage Taken 1056 | . 163 251 . 39 603 Core 880 | . 130 205 . 32 513 Absorbed by Shields . | . . . . . . Redirected to Core 568 | . 98 131 . 25 314 Core Remaining (%) 80 | 100 . . . 60 . Volleys Fired 77 | 36 12 11 . 5 13 Largest 3 | 2 2 2 . 3 3 Hottest 113 | 40 50 50 . 93 113 Shots Fired 154 | 72 22 22 . 11 27 Gun 115 | 72 12 11 . . 20 Cannon . | . . . . . . Launcher 39 | . 10 11 . 11 7 Special . | . . . . . . Kinetic 95 | 72 12 11 . . . Thermal 10 | . . . . . 10 Explosive 39 | . 10 11 . 11 7 Electromagnetic 10 | . . . . . 10 Robot Hit Streak 8 | 7 6 8 . 2 8 Robot Miss Streak 4 | 4 3 2 . 1 3 Penetration Max . | . . . . . . Secondary Targets . | . . . . . . Shots Hit Robots 107 | 44 10 15 . 5 33 Core Hits 86 | 21 20 13 . 11 21 Critical Kills . | . . . . . . Critical Parts Destroyed 1 | 1 . . . . . Critical Strikes 2 | 1 . . . . 1 Destroy 1 | 1 . . . . . Sever 1 | . . . . . 1 Melee Attacks 14 | . . . . . 14 Impact . | . . . . . . Slashing 14 | . . . . . 14 Piercing . | . . . . . . Sneak Attacks 4 | . . . . . 4 Combat Hostiles . | . . . . . . Follow-up Attacks . | . . . . . . Damage Inflicted 3345 | 363 557 698 . 517 1210 Guns 704 | 363 38 53 . . 250 Cannons . | . . . . . . Explosions 2076 | . 519 645 . 517 395 Melee 565 | . . . . . 565 Ramming . | . . . . . . Kinetic 454 | 363 38 53 . . . Thermal 244 | . . . . . 244 Explosive 1949 | . 519 645 . 517 268 Electromagnetic 133 | . . . . . 133 Impact . | . . . . . . Slashing 565 | . . . . . 565 Piercing . | . . . . . . Highest Corruption . | . . . . . . Average Corruption . | . . . . . . Corruption Purged . | . . . . . . Corruption Blocked . | . . . . . . Overload Shots . | . . . . . . Overflow Damage 66 | . . 12 . . 54 Projectiles . | . . . . . . Explosions 12 | . . 12 . . . Melee 54 | . . . . . 54 Knockbacks . | . . . . . . Impact . | . . . . . . Kinetic . | . . . . . . Secondary . | . . . . . . Self-Inflicted Damage 173 | . 67 102 . 4 . Shots 8 | . 3 4 . 1 . Rammed . | . . . . . . Targets Rammed . | . . . . . . Kicked . | . . . . . . Crushed . | . . . . . . Highest Temperature 104 | . 2 16 . 6 104 Average Temperature 32 | . 2 6 . 3 42 Received Heat Transfer 183 | . 9 75 . . 99 Siege Activations . | . . . . . . Robots Corrupted . | . . . . . . Combat Hostiles . | . . . . . . Parts Fried 1 | . . . . . 1 Impact Corruptions . | . . . . . . Robots Melted . | . . . . . . Combat Hostiles . | . . . . . . Parts Melted . | . . . . . . Heat Transferred 359 | . . . . . 359 Parts Sabotaged . | . . . . . . Parts Stolen . | . . . . . . Parts Stripped . | . . . . . . Power Chain Reactions 1 | . . . . . 1 Missiles Intercepted . | . . . . . . Alert | -11 -10 -10 -10 -9 -8 ------- Run | Scr Mat Min Exi Min Mat Peak Influence 545 | 55 395 545 . 423 466 Initial 164 | . 35 153 . . 164 Average 272 | 29 254 496 . 276 298 Maximum Alert Level 2 | . 1 2 . 2 2 Low Security (%) 31 | 100 26 . . 31 6 Level 1 43 | . 73 10 . 29 85 Level 2 25 | . . 89 . 39 7 Level 3 . | . . . . . . Level 4 . | . . . . . . Level 5 . | . . . . . . High Security . | . . . . . . Max Security . | . . . . . . Squads Dispatched 6 | . 3 . . . 3 Investigation 2 | . 2 . . . . Extermination . | . . . . . . Reinforcement 3 | . 1 . . . 2 Assault . | . . . . . . Garrison 1 | . . . . . 1 Intercept . | . . . . . . Searches Triggered . | . . . . . . Construction Impeded . | . . . . . . Haulers Reinforced . | . . . . . . Active Scanning Responses . | . . . . . . Cargo Convoy Interrupts . | . . . . . . Stealth | -11 -10 -10 -10 -9 -8 --------- Run | Scr Mat Min Exi Min Mat Distress Signals 2 | . 1 . . . 1 Communications Jammed . | . . . . . . Distress Signals . | . . . . . . Times Spotted 34 | . 9 6 . 6 13 Peak Tracking Total 4 | . 3 3 . 3 4 Tactical Retreats . | . . . . . . Traps | -11 -10 -10 -10 -9 -8 ------- Run | Scr Mat Min Exi Min Mat Traps Triggered . | . . . . . . Indirectly . | . . . . . . Trap Hack Attempts . | . . . . . . Triggered . | . . . . . . Disarmed 5 | . 5 . . . . Reprogrammed . | . . . . . . Reused . | . . . . . . Traps Extracted . | . . . . . . Installed 4 | . . 4 . . . Triggered . | . . . . . . Most Traps Carried 2 | . . 2 . . . Machines | -11 -10 -10 -10 -9 -8 ---------- Run | Scr Mat Min Exi Min Mat Machines Disabled 8 | . 2 1 . 5 . Max in Single Turn 4 | . 1 1 . 4 . Machines Sabotaged . | . . . . . . Garrisons Compromised . | . . . . . . Overloaded Fab Kills . | . . . . . . Hacking | -11 -10 -10 -10 -9 -8 --------- Run | Scr Mat Min Exi Min Mat Machines Accessed 8 | . 5 . 1 . 2 Terminals 7 | . 5 . . . 2 Fabricators . | . . . . . . Repair Stations . | . . . . . . Recycling Units . | . . . . . . Scanalyzers . | . . . . . . Garrison Access . | . . . . . . Total Hacks 17 | . 12 . 1 . 4 Successful 11 | . 7 . 1 . 3 Failed 6 | . 5 . . . 1 Catastrophic . | . . . . . . Database Lockouts . | . . . . . . Manual 15 | . 11 . 1 . 3 Terminals 16 | . 12 . . . 4 Fabricators . | . . . . . . Repair Stations . | . . . . . . Recycling Units . | . . . . . . Scanalyzers . | . . . . . . Garrison Access . | . . . . . . Terminal Hacks 4 | . 2 . 1 . 1 Record 1 | . . . . . 1 Prototype ID Bank 1 | . 1 . . . . Disarm Traps 1 | . 1 . . . . EX-Prototype ID Bank 1 | . . . 1 . . Fabricator Hacks . | . . . . . . Repair Station Hacks . | . . . . . . Recycling Unit Hacks . | . . . . . . Scanalyzer . | . . . . . . Garrison Access Hacks . | . . . . . . Unauthorized Hacks 7 | . 5 . . . 2 Terminals 7 | . 5 . . . 2 Botnet 7 | . 5 . . . 2 Fabricators . | . . . . . . Repair Stations . | . . . . . . Recycling Units . | . . . . . . Scanalyzers . | . . . . . . Garrison Access . | . . . . . . Data Cores Recovered . | . . . . . . Used . | . . . . . . Hacking Detections 3 | . 3 . . . . Full Trace Events 2 | . 2 . . . . Feedback Events . | . . . . . . Feedback Blocked . | . . . . . . Robot Schematics Acquired . | . . . . . . Robots Built . | . . . . . . Authchips . | . . . . . . Time . | . . . . . . Total Robot Build Rating . | . . . . . . Part Schematics Acquired . | . . . . . . Parts Built . | . . . . . . Authchips . | . . . . . . Time . | . . . . . . Total Part Build Rating . | . . . . . . Parts Repaired . | . . . . . . Time . | . . . . . . Parts Recycled . | . . . . . . Recycled Matter . | . . . . . . Retrieved Matter . | . . . . . . Retrieved Components . | . . . . . . Parts Scanalyzed . | . . . . . . Part Schematics Acquired . | . . . . . . Parts Damaged . | . . . . . . Bothacking | -11 -10 -10 -10 -9 -8 ------------ Run | Scr Mat Min Exi Min Mat Used RIF Installer . | . . . . . . Robots Hacked . | . . . . . . Non-combat . | . . . . . . Combat . | . . . . . . Robot Hacks Applied . | . . . . . . Relay Couplers Released . | . . . . . . Fabnet Peak Effective % . | . . . . . . Robots Rewired . | . . . . . . Allies Hacked . | . . . . . . Hacks Repelled . | . . . . . . Allies | -11 -10 -10 -10 -9 -8 -------- Run | Scr Mat Min Exi Min Mat Total Allies . | . . . . . . Largest Group . | . . . . . . Highest-Rated Group . | . . . . . . Highest-Rated Ally . | . . . . . . Total Orders . | . . . . . . Ally Attacks . | . . . . . . Total Damage . | . . . . . . Kills . | . . . . . . Allies Corrupted . | . . . . . . Allies Melted . | . . . . . . Intel | -11 -10 -10 -10 -9 -8 ------- Run | Scr Mat Min Exi Min Mat Robot Analysis Total . | . . . . . . Derelict Logs Recovered 1 | . . 1 . . . Drone Launches . | . . . . . . Drone Recoveries . | . . . . . . Exploration | -11 -10 -10 -10 -9 -8 ------------- Run | Scr Mat Min Exi Min Mat Turns Passed 1606 | 267 223 257 298 179 382 Spaces Moved 1194 | 94 222 173 251 198 256 Core 11 | 11 . . . . . Treads . | . . . . . . Legs 81 | . . . . . 81 Wheels 1102 | 83 222 173 251 198 175 Hover . | . . . . . . Flight . | . . . . . . Fastest Speed 50 | 50 80 80 80 80 80 Average Speed 83 | 76 80 80 80 80 98 Slowest Speed 200 | 80 80 80 80 80 200 Overloaded Moves . | . . . . . . Propulsion Burnouts . | . . . . . . Robots Hopped . | . . . . . . Cave-ins Triggered . | . . . . . . Exploration Rate (%) 35 | 4 50 37 67 37 17 Regions Visited 5 Branch Regions 3 Pre-discovered Areas . | . . . . . . Known Exits Taken . | . . . . . . Unknown Exits Taken 5 | 1 1 1 1 1 . Scrap Searched 1 | . . 1 . . . Spaces Dug . | . . . . . . Terrain Destroyed 262 | . 33 91 . 75 63 Melee . | . . . . . . Projectile . | . . . . . . AOE 262 | . 33 91 . 75 63 Terrain Rammed . | . . . . . . Walls Destroyed . | . . . . . . Machines Disabled . | . . . . . . Actions | -11 -10 -10 -10 -9 -8 --------- Run | Scr Mat Min Exi Min Mat Total 1642 | 227 248 272 347 207 341 Wait 289 | 87 . 78 96 1 27 Move 1189 | 93 221 172 250 197 256 Hop . | . . . . . . Pick Up 14 | 2 1 4 . 1 6 Fast Attach 18 | 8 3 . 1 . 6 Attach 4 | . . . . 1 3 Detach . | . . . . . . Swap 3 | . . 1 . 2 . Drop 17 | 1 4 2 . . 10 Fire 77 | 36 12 11 . 5 13 Melee 14 | . . . . . 14 Ram . | . . . . . . Kick . | . . . . . . Crush . | . . . . . . Escape Stasis . | . . . . . . Rewire . | . . . . . . Trap 4 | . . 4 . . . Miscellaneous 13 | . 7 . . . 6 Route ------- -11/Scrapyard -10/Materials -10/Mines -10/Exiles -9/Mines -8/Materials (discovered 1 exit: Fac) History --------- Turn | Location | Event 1 | -11/Scrapyard | Upgraded with Propulsion slot (x1) 1 | -11/Scrapyard | Upgraded with Utility slot (x2) 1 | -11/Scrapyard | Upgraded with Weapon slot (x1) 9 | -11/Scrapyard | Discovered new exit (range 15) 268 | -11/Scrapyard | Entered Materials 317 | -10/Materials | Build established: Mutant 436 | -10/Materials | Discovered new exit (range 6) 491 | -10/Materials | Entered Mines 493 | -10/Mines | Reached level 2 549 | -10/Mines | Found a hidden stash of uninstalled traps 583 | -10/Mines | Learned 2 Materials zone layouts 651 | -10/Mines | Build established: Scavenger-Mutant 693 | -10/Mines | Received a Rocket Launcher from a helpful Derelict 744 | -10/Mines | Deemed a non-threat by the Exiles lab entrance 745 | -10/Mines | Discovered new exit (range 5) 748 | -10/Mines | Entered Exiles 769 | -10/Exiles | Met 8R-AWN 781 | -10/Exiles | Met EX-HEX 804 | -10/Exiles | Met EX-BIN 813 | -10/Exiles | Reached level 3 813 | -10/Exiles | Aligned with FarCom system 814 | -10/Exiles | Given EX-Vault access code 833 | -10/Exiles | Opened EX-Vault 836 | -10/Exiles | Upgraded with Utility slot (x1) 838 | -10/Exiles | Found Superbattery 952 | -10/Exiles | Warned to stay clear of 0b10 Research branches 975 | -10/Exiles | Met EX-DEC 1037 | -10/Exiles | Discovered new exit (range 14) 1046 | -10/Exiles | Left Exiles lab with Superbattery 1046 | -10/Exiles | Entered Mines 1047 | -9/Mines | Met a Derelict bent on vengeance 1109 | -9/Mines | Reached level 4 1116 | -9/Mines | Upgraded with Power slot (x1) 1116 | -9/Mines | Upgraded with Weapon slot (x1) 1206 | -9/Mines | Discovered new exit (range 12) 1225 | -9/Mines | Entered Materials 1226 | -8/Materials | Identified exit to Factory 1227 | -8/Materials | Reached level 5 1227 | -8/Materials | Upgraded with Utility slot (x1) 1338 | -8/Materials | Core integrity fell below 50% 1561 | -8/Materials | Garrison activated, responded to threat 1570 | -8/Materials | Build established: Scavenger-Assassin 1574 | -8/Materials | Core integrity fell below 20% 1607 | -8/Materials | Destroyed by G-47 Trooper with Particle Gun Last Messages --------------- 01561_ K-01 Serf destroyed. 01562_ R-06 Scavenger collects Imp. Carbon-fiber Leg. 01566_ K-01 Serf collects debris. 01567_ Knocked back. 01569_ K-01 Serf collects debris. 01569_ R-06 Scavenger collects Imp. Carbon-fiber Leg. 01570_ Chain reaction triggered in Rnf. Deuterium Engine. 01570_ K-01 Serf destroyed. 01571_ H-61 Shepherd calls for reinforcements. 01571_ ALERT: Hostile activity reported, dispatching reinforcements to area. 01571_ Lgt. Nuclear Core destroyed. 01572_ R-06 Scavenger collects Pulse Rifle. 01573_ Penetrated by Slug. 01573_ Knocked back. 01579_ Targeting Computer fried. 01579_ H-61 Shepherd destroyed. 01587_ U-05 Engineer lays Concrete. 01605_ Y-45 Defender destroyed. 01605_ Emergency Access malfunctions. Map ----- +----------------------------------------------------+ | ### # # + # # ###?## ##??### | | ### # ! #"" """ #### # """ #### ##?##?? | | ### + #"Y """ #### # """ #?## ##??#?? | | ### # #"" """ #### # """ #?## ##?#?#? | | ### #####+## #### # ####+####### | | ## #### ##/######+##### # # # | | ## + # # | | ## T #####+########### """ """ # | | ## #######+##### # #####?# """ """ + | | ## #####= ## # ##?#### """ """ # | | #==! ##?# """ ## # ####### # | | #= |!!#### """ ## # ####### # | | # =||!!####! """ ## + ? ? ####### ## | | ########### """ ## # ################## | | ##?######## """!## # ######?####??????? | | ?########## =%= %## # #####?#??#?##????# | | ########### "" !+ ###############?#??#?#???#?? | | ###########= """ ## ############?##?#???#???#??? | | ?#####?####![ S" ## # ####?###???????#?? | | ###########] """ ## # ######?#??#??????# | | ########### """ ## # #######????????### | | ###?####### ## # #?###?#??#??#??#?? | | ########### ####### # ##########???????? | | #???############### # ####?####???##???" | | ################### # ######?##??#?????? | | ###?####?########## + =@ ##### ??????? | | ######?############ ##g#g#;######## ?????#??? | | #??##?#############^ # % Y !######## ?"??????? | | ??################# #[= ##?##### ? ???????? | | ?###?##??########## #[==!% #?###### """ ??????? | | ?##???############# # = #####?## "G ? ?????? | | ???????############ #! % %###?#### ?"" ???????? | | ????#?#??########## # %* ###?#### ???????? | | ??????????######### """ "###?#??#??##?+##??????? | | ?????????### # !]!=!= ? ??????? | | ??????????## # !=%=!*%= ???????? | | ????????#?## "?"? # !!= ! ? ???????? | | ???????????# ?"" + "!""#########?####?#??????? | | ??????????## """ # ## #?###?#?????????? | | ????????????? # ## """"" #?####?#????????? | | ???????????#?###### ?# """""? ####????????????? | | ?????????????#?### # """"" ####?##?????????? | | ???????????? ? # ""?"" #####???????????? | | ??????????# < + """"" ##?#????????????? | | ??????????# * # """"" ?##??#???????????? | | ??????????######## # ?""?" #???????????????? | | ?????????????????## ## ? ?????????????????? | | ????????########### #######?##????????????????? | | ????????# # # ?"?????????????????????? | | ????????# + + ???????????????????????? | +----------------------------------------------------+ Best States ------------- Heat Dissipation 37 Energy Generation 24 Energy Capacity 1685 Matter Stores 400 Matter Capacity 400 Sight Range 17 Robot Scan Range 6 Terrain Scan Range 16 Terrain Scan Density 210 ECM Strength 1 Evasion (%) 55 Offensive Hacking 15 Item Schematics ----------------- None Robot Schematics ------------------ None Fabricated ------------ Nothing Alien Tech Used ----------------- None Achievements -------------- None Challenges ------------ None RPGLIKE | -11 -10 -10 -10 -9 -8 --------- Run | Scr Mat Min Exi Min Mat Levels Raised 4 | . . 1 1 1 1 XP Earned 10114 | 3000 1120 1537 350 1675 2432 XP Spent 8985 | 2970 . 1515 1400 1300 1800 Upgrades 23 | 8 . 6 3 2 4 Power Slot 1 | . . . . 1 . Propulsion Slot 1 | 1 . . . . . Utility Slot 4 | 2 . . 1 . 1 Weapon Slot 2 | 1 . . . 1 . Heat Dissipation 2 | 2 . . . . . Energy Generation 1 | 1 . . . . . Mass Support 1 | . . . 1 . . Inventory Capacity 3 | 1 . 2 . . . Sight Range 1 | . . . . . 1 Sensor Range 3 | . . 2 . . 1 Terrain Scan Density 2 | . . 2 . . . Melee Accuracy 1 | . . . 1 . . Hack Attack % 1 | . . . . . 1 Protomatter Created 208 | . 89 4 . 5 110 Integrity Restored 274 | . 130 . . . 144 Core 274 | . 130 . . . 144 Protomatter Decayed 35 | . 35 . . . . Game ------ Seed MetafiberLaserBeamcaster Manual? 0 Play Time 00:19:19 Cumulative 114.0 hours Start 2022.03.27 @ 17:10:31 End 2022.03.27 @ 17:40:16 Sessions 1 Manual Loads 0 Difficulty Rogue Special Mode Winter2019/RPGLIKE Game No. 42 Rogue 24 Adventurer 14 Explorer 4 Win Type - Total 14 Types 8/5/0/0/0/0/0/0/1 Lore% 50 Gallery% 57 Achievement% 57 Wizard Run 0 Options --------- ASCII 0 Keyboard 0 Movement Mouse Keybinds 0 Fullscreen 1 Font 18/SmallcapsGlow Map View 76x50 Tactical HUD 1 Map Filters NONE Filters NONE Steam 1 RUN: 87efeef5-36a4-4e1d-b69b-0849c4b9fd47